[Event "German Masters 2021"]
[Site "Magdeburg"]
[Date "2021.07.24"]
[Round "2.5"]
[White "Engel, Luis"]
[Black "Heimann, Andreas"]
[Result "1/2-1/2"]
[ECO "C24"]
[WhiteElo "2543"]
[BlackElo "2599"]
[Annotator "ChessBase"]
[PlyCount "123"]
[EventDate "2021.07.23"]
[EventType "tourn"]
[EventCountry "GER"]
[SourceTitle "playchess.com"]
[Source "ChessBase"]
[SourceQuality "1"]
[TimeControl "40/5400+30:1800+30"]

1. e4 {[%emt 0:00:03]} e5 {[%emt 0:00:04]} 2. Bc4 {[%emt 0:00:06]} Nf6 {[%emt 0:00:05]} 3. d3 {[%emt 0:00:04]} Nc6 {[%emt 0:00:05]} 4. Nc3 {[%emt 0:00:06]} Na5 {[%emt 0:00:19]} 5. Nge2 {[%emt 0:00:07]} Bc5 {[%emt 0:01:28]} 6. O-O {[%emt 0:00:21]} Nxc4 {[%emt 0:00:17]} 7. dxc4 {[%emt 0:00:07]} d6 {[%emt 0:00:03]} 8. Qd3 {[%emt 0:00:11]} Be6 {[%emt 0:02:36]} 9. b3 {[%emt 0:00:33]} O-O {[%emt 0:00:55]} 10. Be3 {[%emt 0:02:33]} Bxe3 {[%emt 0:06:30]} 11. Qxe3 {[%emt 0:00:06]} c6 {[%emt 0:00:04]} 12. Rad1 {[%emt 0:04:53]} Qc7 {[%emt 0:00:18]} 13. Rd3 {[%emt 0:03:41]} Rfd8 {[%emt 0:02:11]} 14. Rfd1 {[%emt 0:03:14]} Rd7 {[%emt 0:01:51]} 15. h3 {[%emt 0:05:02]} h6 {[%emt 0:08:01]} 16. f4 {[%emt 0:13:58]} exf4 {[%emt 0:01:13]} 17. Qxf4 {[%emt 0:00:08]} Rad8 {[%emt 0:01:38]} 18. c5 {[%emt 0:21:53]} Ne8 {[%emt 0:08:50]} 19. Nd4 {[%emt 0:05:22]} Qa5 {[%emt 0:15:23]} 20. cxd6 {[%emt 0:01:24]} Rxd6 {[%emt 0:01:42]} 21. e5 {[%emt 0:02:21]} R6d7 {[%emt 0:00:36]} 22. b4 {[%emt 0:04:58]} Qc7 {[%emt 0:00:17]} 23. Ne4 {[%emt 0:00:40]} Bc4 {[%emt 0:01:25]} 24. R3d2 {[%emt 0:08:45]} f6 {[%emt 0:00:17]} 25. Nf3 {[%emt 0:07:10]} Rxd2 {[%emt 0:02:34]} 26. Rxd2 {[%emt 0:00:24]} Rxd2 {[%emt 0:02:18]} 27. Nexd2 {[%emt 0:03:13]} Bxa2 {[%emt 0:04:05]} 28. c4 {[%emt 0:00:47]} b5 {[%emt 0:09:22]} 29. Qf5 {[%emt 0:02:49]} bxc4 {[%emt 0:09:18]} 30. Qe6+ {[%emt 0:00:31]} Qf7 {[%emt 0:00:03]} 31. Qxc6 {[%emt 0:00:08]} c3 {[%emt 0:00:04]} 32. Qxc3 {[%emt 0:00:27]} Bd5 {[%emt 0:02:06]} 33. Qc8 {[%emt 0:01:53]} Qe6 {[%emt 0:03:35]} 34. Qxe6+ {[%emt 0:02:32]} Bxe6 {[%emt 0:00:04]} 35. Nd4 {[%emt 0:00:05]} Bd5 {[%emt 0:00:03]} 36. Nb5 {[%emt 0:00:37]} fxe5 {[%emt 0:01:05]} 37. Nxa7 {[%emt 0:00:06]} Kf7 {[%emt 0:00:02]} 38. Kf2 {[%emt 0:00:36]} Nd6 {[%emt 0:00:46]} 39. Nf3 {[%emt 0:02:22]} Ke6 {[%emt 0:00:14]} 40. b5 {[%emt 0:01:30]} Ba8 {[%emt 0:01:18]} 41. g4 {[%emt 0:34:20]} Kd5 {[%emt 0:31:24]} 42. Ke3 {[%emt 0:00:00]} Bb7 {[%emt 0:00:00]} 43. h4 {[%emt 0:00:00]} Nc4+ {[%emt 0:00:00]} 44. Ke2 {[%emt 0:00:00]} Kc5 {[%emt 0:00:00]} 45. h5 {[%emt 0:00:00]} e4 {[%emt 0:00:00]} 46. Nh4 {[%emt 0:00:00]} Ne5 {[%emt 0:00:00]} 47. g5 {[%emt 0:00:00]} hxg5 {[%emt 0:01:02]} 48. Nf5 {[%emt 0:00:00]} g6 {[%emt 0:00:05]} 49. hxg6 {[%emt 0:00:00]} Nxg6 {[%emt 0:00:04]} 50. Ng3 {[%emt 0:00:00]} Nf4+ {[%emt 0:04:04]} 51. Ke3 {[%emt 0:00:00]} Ng2+ {[%emt 0:00:04]} 52. Kf2 {[%emt 0:00:00]} e3+ {[%emt 0:01:12]} 53. Ke2 {[%emt 0:00:00]} Bd5 {[%emt 0:04:37]} 54. Nc6 {[%emt 0:00:00]} Bc4+ {[%emt 0:04:43]} 55. Kf3 {[%emt 0:00:00]} Bxb5 {[%emt 0:00:05]} 56. Ne7 {[%emt 0:00:00]} e2 {[%emt 0:04:33]} 57. Nxe2 {[%emt 0:00:00]} Nh4+ {[%emt 0:00:04]} 58. Kg4 {[%emt 0:00:09]} Bxe2+ {[%emt 0:00:08]} 59. Kxg5 {[%emt 0:00:06]} Nf3+ {[%emt 0:00:05]} 60. Kf4 {[%emt 0:00:12]} Nd4 {[%emt 0:00:07]} 61. Nf5 {[%emt 0:00:15]} Nxf5 {[%emt 0:00:12]} 62. Kxf5 {[%emt 0:00:06]} 1/2-1/2

[Event "German Masters 2021"]
[Site "Magdeburg"]
[Date "2021.07.26"]
[Round "4.2"]
[White "Svane, Rasmus"]
[Black "Parvanyan, Ashot"]
[Result "1-0"]
[ECO "C76"]
[WhiteElo "2615"]
[BlackElo "2451"]
[Annotator "ChessBase"]
[PlyCount "58"]
[EventDate "2021.07.23"]
[EventType "tourn"]
[EventCountry "GER"]
[SourceTitle "playchess.com"]
[Source "ChessBase"]
[SourceQuality "1"]
[TimeControl "40/5400+30:1800+30"]

1. e4 {[%emt 0:01:16]} e5 {[%emt 0:00:23]} 2. Nf3 {[%emt 0:00:22]} Nc6 {[%emt 0:00:04]} 3. Bb5 {[%emt 0:00:09]} g6 {[%emt 0:00:13]} 4. c3 {[%emt 0:00:23]} a6 {[%emt 0:00:20]} 5. Ba4 {[%emt 0:00:05]} d6 {[%emt 0:00:10]} 6. d4 {[%emt 0:00:36]} Bd7 {[%emt 0:00:13]} 7. O-O {[%emt 0:00:21]} Bg7 {[%emt 0:00:38]} 8. h3 {[%emt 0:00:49]} Nf6 {[%emt 0:01:08]} 9. Re1 {[%emt 0:00:06]} O-O {[%emt 0:00:48]} 10. Bc2 {[%emt 0:00:05]} Re8 {[%emt 0:02:22]} 11. Nbd2 {[%emt 0:07:28]} b5 {[%emt 0:04:07]} 12. Nf1 {[%emt 0:07:20]} Na5 {[%emt 0:00:19]} 13. Bg5 {[%emt 0:16:38]} h6 {[%emt 0:08:01]} 14. Bh4 {[%emt 0:02:25]} Nc4 {[%emt 0:08:09]} 15. b3 {[%emt 0:02:12]} Nb6 {[%emt 0:09:20]} 16. Qd2 {[%emt 0:00:05]} Qe7 {[%emt 0:05:29]} 17. Rad1 {[%emt 0:04:19]} g5 {[%emt 0:02:53]} 18. Bg3 {[%emt 0:04:22]} Nh5 {[%emt 0:00:24]} 19. Ne3 {[%emt 0:05:29]} Nf4 {[%emt 0:07:33]} 20. Nf5 {[%emt 0:13:19]} Bxf5 {[%emt 0:05:20]} 21. exf5 {[%emt 0:00:07]} Qf6 {[%emt 0:01:09]} 22. h4 {[%emt 0:06:50]} exd4 {[%emt 0:22:50]} 23. cxd4 {[%emt 0:00:06]} Nbd5 {[%emt 0:00:25]} 24. Be4 {[%emt 0:05:51]} Rad8 {[%emt 0:09:28]} 25. Nh2 {[%emt 0:06:06]} c5 {[%emt 0:06:02]} 26. hxg5 {[%emt 0:07:57]} hxg5 {[%emt 0:04:23]} 27. Bxf4 {[%emt 0:01:12]} Nxf4 {[%emt 0:00:21]} 28. g3 {[%emt 0:00:03]} d5 {[%emt 0:01:25]} 29. Bf3 {[%emt 0:02:25]} Nh3+ {[%emt 0:00:31]} 1-0

[Event "German Masters 2021"]
[Site "Magdeburg"]
[Date "2021.07.26"]
[Round "4.3"]
[White "Graf, Alexander"]
[Black "Meier, Georg"]
[Result "0-1"]
[ECO "A06"]
[WhiteElo "2569"]
[BlackElo "2628"]
[Annotator "ChessBase"]
[PlyCount "89"]
[EventDate "2021.07.23"]
[EventType "tourn"]
[EventCountry "GER"]
[SourceTitle "playchess.com"]
[Source "ChessBase"]
[SourceQuality "1"]
[TimeControl "40/5400+30:1800+30"]

1. Nf3 {[%emt 0:00:04]} d5 {[%emt 0:02:34]} 2. g3 {[%emt 0:00:04]} Bg4 {[%emt 0:00:08]} 3. Bg2 {[%emt 0:00:10]} e6 {[%emt 0:00:04]} 4. O-O {[%emt 0:08:43]} Nf6 {[%emt 0:00:25]} 5. d4 {[%emt 0:00:11]} Be7 {[%emt 0:00:44]} 6. Nbd2 {[%emt 0:00:11]} O-O {[%emt 0:00:21]} 7. Re1 {[%emt 0:00:07]} c5 {[%emt 0:00:22]} 8. c4 {[%emt 0:06:44]} cxd4 {[%emt 0:28:28]} 9. Nxd4 {[%emt 0:32:14]} e5 {[%emt 0:13:33]} 10. N4f3 {[%emt 0:10:24]} e4 {[%emt 0:00:23]} 11. Ne5 {[%emt 0:00:14]} Bh5 {[%emt 0:08:16]} 12. cxd5 {[%emt 0:12:44]} Qxd5 {[%emt 0:00:07]} 13. Nxe4 {[%emt 0:03:31]} Qxe5 {[%emt 0:01:25]} 14. Nxf6+ {[%emt 0:00:45]} Qxf6 {[%emt 0:00:35]} 15. Bxb7 {[%emt 0:00:15]} Nc6 {[%emt 0:01:47]} 16. Qd5 {[%emt 0:06:12]} Rab8 {[%emt 0:13:07]} 17. Bxc6 {[%emt 0:06:52]} Bb4 {[%emt 0:00:15]} 18. Bg5 {[%emt 0:00:42]} Qxb2 {[%emt 0:00:47]} 19. Rab1 {[%emt 0:04:11]} Qc2 {[%emt 0:07:55]} 20. Rec1 {[%emt 0:02:58]} Qxe2 {[%emt 0:00:39]} 21. Bf4 {[%emt 0:01:30]} Rbd8 {[%emt 0:00:59]} 22. Qc4 {[%emt 0:00:54]} a5 {[%emt 0:02:14]} 23. Qxe2 {[%emt 0:00:47]} Bxe2 {[%emt 0:00:15]} 24. Rb3 {[%emt 0:00:07]} Bd1 {[%emt 0:01:07]} 25. Re3 {[%emt 0:00:21]} Bg4 {[%emt 0:00:24]} 26. Re5 {[%emt 0:00:53]} Be6 {[%emt 0:01:47]} 27. Re2 {[%emt 0:00:35]} Rc8 {[%emt 0:01:16]} 28. a4 {[%emt 0:00:50]} Rfd8 {[%emt 0:01:06]} 29. f3 {[%emt 0:00:02]} h6 {[%emt 0:04:00]} 30. Kf2 {[%emt 0:00:50]} Kf8 {[%emt 0:03:41]} 31. g4 {[%emt 0:00:28]} Rd4 {[%emt 0:01:35]} 32. Be3 {[%emt 0:00:44]} Rc4 {[%emt 0:00:59]} 33. Rxc4 {[%emt 0:00:28]} Bxc4 {[%emt 0:00:06]} 34. Bb7 {[%emt 0:00:11]} Rb8 {[%emt 0:01:06]} 35. Rc2 {[%emt 0:00:24]} Bb3 {[%emt 0:00:08]} 36. Rc7 {[%emt 0:00:10]} Bxa4 {[%emt 0:00:39]} 37. Bd5 {[%emt 0:00:16]} Be8 38. Bc5+ Bxc5+ {[%emt 0:00:44]} 39. Rxc5 {[%emt 0:00:01]} Rb5 {[%emt 0:01:03]} 40. Rxb5 {[%emt 0:00:25]} Bxb5 {[%emt 0:00:03]} 41. Ke3 {[%emt 0:30:06]} Bd7 {[%emt 0:34:42]} 42. Kd4 {[%emt 0:00:00]} g5 {[%emt 0:00:00]} 43. Kc5 {[%emt 0:00:00]} Ke7 {[%emt 0:00:00]} 44. Bc4 {[%emt 0:00:00]} Be6 {[%emt 0:00:00]} 45. Kd4 0-1

[Event "German Masters 2021"]
[Site "Magdeburg"]
[Date "2021.07.26"]
[Round "4.5"]
[White "Heimann, Andreas"]
[Black "Fridman, Daniel"]
[Result "1/2-1/2"]
[ECO "D32"]
[WhiteElo "2599"]
[BlackElo "2608"]
[Annotator "ChessBase"]
[PlyCount "54"]
[EventDate "2021.07.23"]
[EventType "tourn"]
[EventCountry "GER"]
[SourceTitle "playchess.com"]
[Source "ChessBase"]
[SourceQuality "1"]
[TimeControl "40/5400+30:1800+30"]

1. d4 {[%emt 0:00:05]} d5 {[%emt 0:03:03]} 2. c4 {[%emt 0:00:04]} e6 {[%emt 0:00:06]} 3. Nc3 {[%emt 0:00:04]} c5 {[%emt 0:00:07]} 4. cxd5 {[%emt 0:00:06]} exd5 {[%emt 0:00:04]} 5. Nf3 {[%emt 0:00:13]} Nc6 {[%emt 0:00:05]} 6. dxc5 {[%emt 0:00:32]} d4 {[%emt 0:00:06]} 7. Na4 {[%emt 0:00:07]} Bxc5 {[%emt 0:00:18]} 8. Nxc5 {[%emt 0:00:04]} Qa5+ {[%emt 0:00:06]} 9. Qd2 {[%emt 0:01:43]} Qxc5 {[%emt 0:00:22]} 10. e3 {[%emt 0:00:03]} dxe3 {[%emt 0:09:58]} 11. Qxe3+ {[%emt 0:00:37]} Qxe3+ {[%emt 0:00:06]} 12. Bxe3 {[%emt 0:00:05]} Nge7 {[%emt 0:00:32]} 13. Bb5 {[%emt 0:02:05]} O-O {[%emt 0:06:34]} 14. O-O {[%emt 0:03:11]} Be6 {[%emt 0:04:19]} 15. Rfd1 {[%emt 0:01:56]} Rfd8 {[%emt 0:03:11]} 16. Bxc6 {[%emt 0:05:20]} Nxc6 {[%emt 0:00:54]} 17. Nd4 {[%emt 0:00:08]} Nxd4 {[%emt 0:00:07]} 18. Rxd4 {[%emt 0:00:04]} Rxd4 {[%emt 0:00:06]} 19. Bxd4 {[%emt 0:00:02]} a6 {[%emt 0:00:34]} 20. a3 {[%emt 0:00:05]} f6 {[%emt 0:00:07]} 21. f3 {[%emt 0:00:09]} Kf7 {[%emt 0:00:07]} 22. Rc1 {[%emt 0:00:10]} Rc8 {[%emt 0:00:06]} 23. Rxc8 {[%emt 0:00:04]} Bxc8 {[%emt 0:00:04]} 24. Bc3 {[%emt 0:00:03]} Be6 {[%emt 0:00:06]} 25. Bd4 {[%emt 0:00:02]} Bc8 {[%emt 0:00:07]} 26. Bc3 {[%emt 0:00:04]} Be6 {[%emt 0:00:04]} 27. Bd4 {[%emt 0:00:02]} Bc8 1/2-1/2

[Event "German Masters 2021"]
[Site "Magdeburg"]
[Date "2021.07.27"]
[Round "5.3"]
[White "Meier, Georg"]
[Black "Engel, Luis"]
[Result "0-1"]
[ECO "D37"]
[WhiteElo "2628"]
[BlackElo "2543"]
[Annotator "ChessBase"]
[PlyCount "74"]
[EventDate "2021.07.23"]
[EventType "tourn"]
[EventCountry "GER"]
[SourceTitle "playchess.com"]
[Source "ChessBase"]
[SourceQuality "1"]
[TimeControl "40/5400+30:1800+30"]

1. d4 {[%emt 0:00:22]} Nf6 {[%emt 0:00:15]} 2. Nf3 {[%emt 0:00:19]} d5 {[%emt 0:00:06]} 3. c4 {[%emt 0:00:05]} e6 {[%emt 0:00:05]} 4. Nc3 {[%emt 0:00:05]} dxc4 {[%emt 0:02:08]} 5. e4 {[%emt 0:01:34]} b5 {[%emt 0:00:16]} 6. Nxb5 {[%emt 0:07:17]} Nxe4 {[%emt 0:00:28]} 7. Bxc4 {[%emt 0:00:19]} Bb4+ {[%emt 0:01:26]} 8. Ke2 {[%emt 0:00:41]} O-O {[%emt 0:26:38]} 9. Qc2 {[%emt 0:27:39]} Nd6 {[%emt 0:08:57]} 10. Nxd6 {[%emt 0:21:09]} cxd6 {[%emt 0:03:35]} 11. Bg5 {[%emt 0:01:38]} Qe8 {[%emt 0:07:03]} 12. Rhc1 {[%emt 0:04:04]} Ba5 {[%emt 0:06:58]} 13. Kf1 {[%emt 0:04:54]} Bb7 {[%emt 0:01:32]} 14. Qb3 {[%emt 0:01:48]} Bb6 {[%emt 0:03:54]} 15. a4 {[%emt 0:02:24]} Nc6 {[%emt 0:03:00]} 16. Bb5 {[%emt 0:01:58]} Rb8 {[%emt 0:06:46]} 17. d5 {[%emt 0:04:14]} exd5 {[%emt 0:00:23]} 18. Re1 {[%emt 0:07:10]} Qc8 {[%emt 0:00:34]} 19. Rac1 {[%emt 0:03:59]} Bc5 {[%emt 0:01:02]} 20. Be3 {[%emt 0:04:40]} d4 {[%emt 0:01:13]} 21. Bd2 {[%emt 0:00:10]} a6 {[%emt 0:03:30]} 22. Qd3 {[%emt 0:01:38]} axb5 {[%emt 0:01:05]} 23. axb5 {[%emt 0:00:05]} Qg4 {[%emt 0:02:00]} 24. Ng5 {[%emt 0:03:24]} Qxg2+ {[%emt 0:05:04]} 25. Kxg2 {[%emt 0:00:08]} Ne5+ {[%emt 0:00:08]} 26. Qe4 {[%emt 0:00:30]} Nd3 {[%emt 0:00:12]} 27. b4 {[%emt 0:00:25]} Nxe1+ {[%emt 0:03:01]} 28. Bxe1 {[%emt 0:00:13]} Bxe4+ {[%emt 0:00:49]} 29. Nxe4 {[%emt 0:00:07]} f5 {[%emt 0:02:10]} 30. Nxc5 {[%emt 0:01:09]} dxc5 {[%emt 0:00:07]} 31. Rxc5 {[%emt 0:00:05]} g6 {[%emt 0:02:19]} 32. Bd2 {[%emt 0:00:09]} d3 {[%emt 0:03:12]} 33. Bf4 {[%emt 0:00:56]} Rfd8 {[%emt 0:01:07]} 34. Bd2 {[%emt 0:00:09]} Rb6 {[%emt 0:01:30]} 35. Kf3 {[%emt 0:00:14]} Re6 {[%emt 0:00:29]} 36. Rc6 {[%emt 0:00:55]} Re2 {[%emt 0:00:37]} 37. Bg5 {[%emt 0:00:13]} d2 {[%emt 0:00:28]} 0-1

[Event "German Masters 2021"]
[Site "Magdeburg"]
[Date "2021.07.27"]
[Round "5.4"]
[White "Parvanyan, Ashot"]
[Black "Graf, Alexander"]
[Result "1/2-1/2"]
[ECO "D02"]
[WhiteElo "2451"]
[BlackElo "2569"]
[Annotator "ChessBase"]
[PlyCount "129"]
[EventDate "2021.07.23"]
[EventType "tourn"]
[EventCountry "GER"]
[SourceTitle "playchess.com"]
[Source "ChessBase"]
[SourceQuality "1"]
[TimeControl "40/5400+30:1800+30"]

1. Nf3 {[%emt 0:00:35]} d5 {[%emt 0:01:51]} 2. d4 {[%emt 0:00:34]} Nf6 {[%emt 0:01:39]} 3. c4 {[%emt 0:00:06]} c6 {[%emt 0:00:53]} 4. Qc2 {[%emt 0:03:15]} g6 {[%emt 0:07:01]} 5. e3 {[%emt 0:03:52]} Bg7 {[%emt 0:02:49]} 6. Bd3 {[%emt 0:04:52]} O-O {[%emt 0:17:35]} 7. Nc3 {[%emt 0:03:25]} Na6 {[%emt 0:22:12]} 8. Qb3 {[%emt 0:11:22]} c5 {[%emt 0:04:55]} 9. O-O {[%emt 0:18:43]} b6 {[%emt 0:11:17]} 10. cxd5 {[%emt 0:05:48]} cxd4 {[%emt 0:04:21]} 11. exd4 {[%emt 0:04:33]} Nc7 {[%emt 0:00:29]} 12. Ne5 {[%emt 0:00:41]} Bb7 {[%emt 0:00:19]} 13. Nc6 {[%emt 0:06:00]} Qd6 {[%emt 0:00:53]} 14. Na5 {[%emt 0:30:30]} Bxd5 {[%emt 0:14:45]} 15. Nxd5 {[%emt 0:00:12]} Nfxd5 {[%emt 0:01:09]} 16. Nc4 {[%emt 0:00:35]} Qb4 {[%emt 0:00:12]} 17. Be3 {[%emt 0:03:02]} Rfd8 {[%emt 0:00:54]} 18. Qxb4 {[%emt 0:00:35]} Nxb4 {[%emt 0:00:08]} 19. Be4 {[%emt 0:00:03]} Nbd5 {[%emt 0:00:37]} 20. Rfd1 {[%emt 0:01:13]} Rac8 {[%emt 0:00:57]} 21. Rac1 {[%emt 0:00:25]} Ne6 {[%emt 0:01:46]} 22. a4 {[%emt 0:00:37]} Rc7 {[%emt 0:00:14]} 23. Kf1 {[%emt 0:00:31]} f5 {[%emt 0:00:11]} 24. Bf3 {[%emt 0:00:30]} f4 {[%emt 0:00:22]} 25. Bd2 {[%emt 0:00:22]} g5 {[%emt 0:00:31]} 26. Ne5 {[%emt 0:00:37]} Rxc1 {[%emt 0:01:11]} 27. Bxc1 {[%emt 0:00:14]} Nb4 {[%emt 0:00:26]} 28. Bd2 {[%emt 0:00:46]} Rxd4 {[%emt 0:00:16]} 29. Bxb4 {[%emt 0:00:29]} Rxb4 {[%emt 0:00:16]} 30. Nc6 {[%emt 0:00:26]} Rxa4 {[%emt 0:00:40]} 31. Bd5 {[%emt 0:00:35]} Bxb2 {[%emt 0:00:11]} 32. Nd8 {[%emt 0:00:31]} Kg7 {[%emt 0:00:10]} 33. Nxe6+ {[%emt 0:00:29]} Kf6 {[%emt 0:00:01]} 34. Nf8 {[%emt 0:00:29]} h6 {[%emt 0:00:20]} 35. Nd7+ {[%emt 0:00:28]} Kf5 {[%emt 0:00:02]} 36. Bb3 {[%emt 0:00:32]} Ra3 {[%emt 0:01:01]} 37. Rd3 {[%emt 0:00:32]} e5 {[%emt 0:01:32]} 38. f3 {[%emt 0:00:28]} e4 {[%emt 0:00:27]} 39. fxe4+ {[%emt 0:00:26]} Kxe4 {[%emt 0:00:01]} 40. Ke2 {[%emt 0:00:25]} g4 {[%emt 0:01:49]} 41. Nb8 {[%emt 0:13:09]} a5 {[%emt 0:08:56]} 42. Nd7 {[%emt 0:03:32]} a4 {[%emt 0:05:14]} 43. Bd5+ {[%emt 0:05:27]} Kf5 {[%emt 0:00:10]} 44. Rxa3 {[%emt 0:01:30]} Bxa3 {[%emt 0:00:09]} 45. Nxb6 {[%emt 0:05:06]} Bd6 {[%emt 0:00:14]} 46. Nxa4 {[%emt 0:02:12]} f3+ {[%emt 0:00:09]} 47. Kf2 {[%emt 0:00:30]} fxg2 {[%emt 0:08:37]} 48. Kxg2 {[%emt 0:01:07]} h5 {[%emt 0:00:09]} 49. Nc3 {[%emt 0:01:03]} h4 {[%emt 0:00:08]} 50. Ne2 {[%emt 0:01:29]} Be5 {[%emt 0:00:48]} 51. Bb7 {[%emt 0:00:28]} Kg5 {[%emt 0:00:07]} 52. Bc8 {[%emt 0:00:24]} Bb2 {[%emt 0:00:30]} 53. Bd7 {[%emt 0:00:22]} Be5 {[%emt 0:00:10]} 54. Kh1 {[%emt 0:00:30]} Bb2 {[%emt 0:00:35]} 55. Bc8 {[%emt 0:00:06]} Be5 {[%emt 0:00:13]} 56. Nc1 {[%emt 0:00:56]} h3 {[%emt 0:00:33]} 57. Ne2 {[%emt 0:00:47]} Kh4 {[%emt 0:00:23]} 58. Ng1 {[%emt 0:00:30]} Bd4 {[%emt 0:00:38]} 59. Ne2 {[%emt 0:00:23]} Be5 {[%emt 0:00:21]} 60. Bb7 {[%emt 0:00:36]} g3 {[%emt 0:00:34]} 61. hxg3+ {[%emt 0:00:27]} Bxg3 {[%emt 0:00:09]} 62. Nd4 {[%emt 0:00:11]} Bc7 {[%emt 0:00:23]} 63. Nf5+ {[%emt 0:00:30]} Kg5 {[%emt 0:00:14]} 64. Ng7 {[%emt 0:00:16]} Be5 {[%emt 0:00:20]} 65. Ne6+ {[%emt 0:00:30]} 1/2-1/2

[Event "German Masters 2021"]
[Site "Magdeburg"]
[Date "2021.07.27"]
[Round "5.5"]
[White "Braun, Arik"]
[Black "Svane, Rasmus"]
[Result "0-1"]
[ECO "E32"]
[WhiteElo "2609"]
[BlackElo "2615"]
[Annotator "ChessBase"]
[PlyCount "76"]
[EventDate "2021.07.23"]
[EventType "tourn"]
[EventCountry "GER"]
[SourceTitle "playchess.com"]
[Source "ChessBase"]
[SourceQuality "1"]
[TimeControl "40/5400+30:1800+30"]

1. d4 {[%emt 0:00:03]} Nf6 {[%emt 0:01:51]} 2. c4 {[%emt 0:00:04]} e6 {[%emt 0:00:10]} 3. Nc3 {[%emt 0:00:05]} Bb4 {[%emt 0:00:06]} 4. Qc2 {[%emt 0:00:04]} O-O {[%emt 0:00:08]} 5. a3 {[%emt 0:00:05]} Bxc3+ {[%emt 0:00:07]} 6. Qxc3 {[%emt 0:00:05]} d5 {[%emt 0:00:07]} 7. Bg5 {[%emt 0:00:09]} h6 {[%emt 0:00:41]} 8. Bxf6 {[%emt 0:00:11]} Qxf6 {[%emt 0:00:06]} 9. Nf3 {[%emt 0:00:06]} dxc4 {[%emt 0:01:52]} 10. Qxc4 {[%emt 0:00:08]} Nc6 {[%emt 0:00:17]} 11. Qc3 {[%emt 0:00:10]} Re8 {[%emt 0:00:29]} 12. Rd1 {[%emt 0:00:48]} e5 {[%emt 0:00:21]} 13. d5 {[%emt 0:00:12]} Nb8 {[%emt 0:01:15]} 14. e3 {[%emt 0:00:19]} Bf5 {[%emt 0:00:31]} 15. Be2 {[%emt 0:08:53]} Nd7 {[%emt 0:00:32]} 16. O-O {[%emt 0:00:49]} Rac8 {[%emt 0:00:52]} 17. Bb5 {[%emt 0:08:38]} a6 {[%emt 0:00:54]} 18. Bxd7 {[%emt 0:00:52]} Bxd7 {[%emt 0:00:06]} 19. Nd2 {[%emt 0:10:23]} Bb5 {[%emt 0:00:34]} 20. Rfe1 {[%emt 0:06:10]} e4 {[%emt 0:00:07]} 21. Rc1 {[%emt 0:02:21]} Qf5 {[%emt 0:20:10]} 22. Qd4 {[%emt 0:05:16]} Rcd8 {[%emt 0:03:04]} 23. Nb3 {[%emt 0:03:21]} Rxd5 {[%emt 0:04:15]} 24. Qa7 {[%emt 0:00:32]} Qh5 {[%emt 0:13:55]} 25. Nd4 {[%emt 0:08:32]} Rg5 {[%emt 0:02:14]} 26. Kh1 {[%emt 0:07:28]} Qg4 {[%emt 0:04:45]} 27. Rg1 {[%emt 0:03:37]} Rh5 {[%emt 0:02:37]} 28. g3 {[%emt 0:00:27]} Be2 {[%emt 0:27:30]} 29. Nxe2 {[%emt 0:01:36]} Qxe2 {[%emt 0:00:14]} 30. Qd4 {[%emt 0:00:27]} Qxf2 {[%emt 0:03:46]} 31. Rg2 {[%emt 0:00:13]} Qf3 {[%emt 0:00:20]} 32. Rxc7 {[%emt 0:00:22]} Qf1+ {[%emt 0:00:06]} 33. Rg1 {[%emt 0:00:04]} Qf3+ {[%emt 0:00:11]} 34. Rg2 {[%emt 0:00:04]} Ree5 {[%emt 0:01:31]} 35. Rc1 {[%emt 0:14:24]} Rd5 {[%emt 0:00:20]} 36. Qc4 {[%emt 0:00:31]} Rd2 {[%emt 0:06:11]} 37. Qf1 {[%emt 0:00:29]} Rxg2 {[%emt 0:00:58]} 38. Qxg2 {[%emt 0:00:08]} Qxe3 {[%emt 0:00:08]} 0-1

[Event "German Masters 2021"]
[Site "Magdeburg"]
[Date "2021.07.28"]
[Round "6.3"]
[White "Engel, Luis"]
[Black "Parvanyan, Ashot"]
[Result "1/2-1/2"]
[ECO "C77"]
[WhiteElo "2543"]
[BlackElo "2451"]
[Annotator "ChessBase"]
[PlyCount "82"]
[EventDate "2021.07.23"]
[EventType "tourn"]
[EventCountry "GER"]
[SourceTitle "playchess.com"]
[Source "ChessBase"]
[SourceQuality "1"]
[TimeControl "40/5400+30:1800+30"]

1. e4 {[%emt 0:00:03]} e5 {[%emt 0:00:57]} 2. Nf3 {[%emt 0:00:29]} Nc6 {[%emt 0:00:12]} 3. Bb5 {[%emt 0:00:05]} a6 {[%emt 0:00:23]} 4. Ba4 {[%emt 0:00:06]} Nf6 {[%emt 0:00:16]} 5. d3 {[%emt 0:00:58]} b5 {[%emt 0:00:42]} 6. Bb3 {[%emt 0:00:06]} Bc5 {[%emt 0:00:10]} 7. Nc3 {[%emt 0:00:54]} d6 {[%emt 0:01:23]} 8. Nd5 {[%emt 0:00:13]} h6 {[%emt 0:00:44]} 9. c3 {[%emt 0:00:23]} Be6 {[%emt 0:00:36]} 10. Nxf6+ {[%emt 0:00:21]} Qxf6 {[%emt 0:00:13]} 11. O-O {[%emt 0:00:16]} Ne7 {[%emt 0:01:24]} 12. Bxe6 {[%emt 0:06:27]} Qxe6 {[%emt 0:00:21]} 13. d4 {[%emt 0:06:19]} Bb6 {[%emt 0:00:16]} 14. Be3 {[%emt 0:04:51]} O-O {[%emt 0:01:02]} 15. Re1 {[%emt 0:10:24]} f5 {[%emt 0:15:25]} 16. d5 {[%emt 0:07:13]} Qf7 {[%emt 0:08:39]} 17. Bxb6 {[%emt 0:00:16]} cxb6 {[%emt 0:00:46]} 18. Nd2 {[%emt 0:01:28]} fxe4 {[%emt 0:21:01]} 19. Nxe4 {[%emt 0:00:08]} Rad8 {[%emt 0:08:40]} 20. Qb3 {[%emt 0:01:40]} Qxd5 {[%emt 0:08:48]} 21. Qxd5+ {[%emt 0:00:08]} Nxd5 {[%emt 0:00:03]} 22. Rad1 {[%emt 0:00:24]} Nf6 {[%emt 0:00:05]} 23. Nxd6 {[%emt 0:00:30]} Rd7 {[%emt 0:00:12]} 24. Rd2 {[%emt 0:09:12]} Rfd8 {[%emt 0:04:35]} 25. Red1 {[%emt 0:00:07]} Ne8 {[%emt 0:03:39]} 26. Ne4 {[%emt 0:00:30]} Rxd2 {[%emt 0:00:04]} 27. Nxd2 {[%emt 0:03:35]} Nc7 {[%emt 0:06:35]} 28. Kf1 {[%emt 0:00:25]} Ne6 {[%emt 0:00:24]} 29. g3 {[%emt 0:00:37]} Nc5 {[%emt 0:01:25]} 30. Ke2 {[%emt 0:01:04]} Kf7 {[%emt 0:00:51]} 31. b4 {[%emt 0:09:25]} Na4 {[%emt 0:01:21]} 32. Rc1 {[%emt 0:00:11]} Nb2 {[%emt 0:05:48]} 33. Ne4 {[%emt 0:02:28]} Ke6 {[%emt 0:00:58]} 34. h4 {[%emt 0:02:37]} Ra8 {[%emt 0:03:28]} 35. Nd2 {[%emt 0:12:54]} a5 {[%emt 0:02:10]} 36. Rc2 {[%emt 0:04:02]} Nc4 {[%emt 0:00:55]} 37. Nxc4 {[%emt 0:00:25]} bxc4 {[%emt 0:00:03]} 38. b5 {[%emt 0:01:11]} a4 {[%emt 0:00:53]} 39. a3 {[%emt 0:01:30]} Ra5 {[%emt 0:01:32]} 40. Rb2 {[%emt 0:00:07]} Kd5 {[%emt 0:02:23]} 41. Ke3 {[%emt 0:30:33]} Ra7 {[%emt 0:09:35]} 1/2-1/2